[Event "Asian Amateur Rapid 2024"]
[Site "Al Ain"]
[Date "2024.12.15"]
[Round "5.41"]
[White "Sultan Ahmed AlMheiri"]
[Black "Muhammad Saleem, Hamad"]
[Result "1-0"]
[ECO "C54"]
[WhiteElo "1569"]
[BlackElo "1577"]
[Annotator "NA COMBH"]
[PlyCount "63"]
[EventDate "2024.12.15"]
[EventType "swiss"]
[EventCountry "UAE"]
[SourceTitle "playchess.com"]
[Source "ChessBase"]
[SourceQuality "1"]
[TimeControl "900+10"]

1. e4 {[%emt 0:00:02]} e5 {[%emt 0:00:01]} 2. Nf3 {[%emt 0:00:01]} Nc6 {[%emt 0:00:01]} 3. Bc4 {[%emt 0:00:01]} Nf6 {[%emt 0:00:02]} 4. d3 {[%emt 0:00:01]} Bc5 {[%emt 0:00:04]} 5. c3 {[%emt 0:00:02]} h6 {[%emt 0:00:06]} 6. O-O {[%emt 0:16:03]} d6 {[%emt 0:00:04]} 7. Nbd2 {[%emt 0:00:00]} Be6 {[%emt 0:00:08]} 8. Bb3 {[%emt 0:00:00]} O-O {[%emt 0:00:03]} 9. h3 {[%emt 0:00:00]} Ne7 {[%emt 0:00:02]} 10. Re1 {[%emt 0:00:00]} Ng6 {[%emt 0:00:03]} 11. Nf1 {[%emt 0:00:00]} c6 {[%emt 0:00:04]} 12. Bc2 {[%emt 0:00:00]} d5 {[%emt 0:00:05]} 13. exd5 {[%emt 0:00:00]} cxd5 {[%emt 0:00:01]} 14. Nxe5 {[%emt 0:00:00]} Nxe5 {[%emt 0:00:04]} 15. Rxe5 {[%emt 0:00:00]} Qd6 {[%emt 0:00:29]} 16. d4 {[%emt 0:00:00]} Bb6 {[%emt 0:00:01]} 17. Ng3 {[%emt 0:00:00]} Nd7 {[%emt 0:00:27]} 18. Re1 {[%emt 0:00:00]} Bc7 {[%emt 0:00:13]} 19. Qd3 {[%emt 0:00:00]} Nf6 {[%emt 0:00:51]} 20. f4 {[%emt 0:00:00]} Rfe8 {[%emt 0:15:41]} 21. Bd2 {[%emt 0:00:00]} Bd7 {[%emt 0:00:00]} 22. Qf3 {[%emt 0:00:00]} Rxe1+ {[%emt 0:00:00]} 23. Rxe1 {[%emt 0:00:00]} Re8 {[%emt 0:00:00]} 24. Rxe8+ {[%emt 0:00:00]} Bxe8 {[%emt 0:00:00]} 25. Nf5 {[%emt 0:00:00]} Qe6 {[%emt 0:00:00]} 26. Ne3 {[%emt 0:00:00]} Ne4 {[%emt 0:00:00]} 27. Be1 {[%emt 0:00:00]} Bb5 {[%emt 0:00:00]} 28. c4 {[%emt 0:00:00]} Bc6 {[%emt 0:00:00]} 29. cxd5 {[%emt 0:00:00]} Bxd5 {[%emt 0:00:00]} 30. Nxd5 {[%emt 0:00:00]} Qxd5 {[%emt 0:00:00]} 31. Qxe4 {[%emt 0:00:00]} Qxa2 {[%emt 0:00:00] Check Result:?ev?} 32. Qe8# {[%emt 0:00:00]} 1-0

[Event "Asian Amateur Rapid 2024"]
[Site "Al Ain"]
[Date "2024.12.15"]
[Round "5.42"]
[White "KHALID ALHAWAY"]
[Black "Amirgali, Nurali"]
[Result "0-1"]
[ECO "B13"]
[WhiteElo "1529"]
[BlackElo "1572"]
[Annotator "NA COMBH"]
[PlyCount "106"]
[EventDate "2024.12.15"]
[EventType "swiss"]
[EventCountry "UAE"]
[SourceTitle "playchess.com"]
[Source "ChessBase"]
[SourceQuality "1"]
[TimeControl "900+10"]

1. e4 {[%emt 0:00:00]} c6 {[%emt 0:00:01]} 2. Nf3 {[%emt 0:00:02]} d5 {[%emt 0:00:01]} 3. exd5 {[%emt 0:00:03]} cxd5 {[%emt 0:00:02]} 4. d4 {[%emt 0:00:00]} Bg4 {[%emt 0:00:01]} 5. Bf4 {[%emt 0:00:36]} Qb6 {[%emt 0:00:16]} 6. Bc1 {[%emt 0:00:34]} Nc6 {[%emt 0:00:05]} 7. Be2 {[%emt 0:00:08]} e6 {[%emt 0:00:16]} 8. c3 {[%emt 0:00:01]} Bd6 {[%emt 0:00:17]} 9. h3 {[%emt 0:00:13]} Bh5 {[%emt 0:00:16]} 10. Nbd2 {[%emt 0:00:41]} Nf6 {[%emt 0:00:15]} 11. Qb3 {[%emt 0:00:49]} Qc7 {[%emt 0:00:56]} 12. c4 {[%emt 0:01:01]} O-O {[%emt 0:00:45]} 13. c5 {[%emt 0:00:09]} Be7 {[%emt 0:00:06]} 14. Nf1 {[%emt 0:00:23]} Bxf3 {[%emt 0:00:21]} 15. Bxf3 {[%emt 0:00:31]} Nxd4 {[%emt 0:00:04]} 16. Qc3 {[%emt 0:00:04]} Nxf3+ {[%emt 0:01:16]} 17. Qxf3 {[%emt 0:00:07]} Qxc5 {[%emt 0:00:05]} 18. Be3 {[%emt 0:00:24]} Qb4+ {[%emt 0:00:10]} 19. Nd2 {[%emt 0:00:10]} Qxb2 {[%emt 0:00:24]} 20. O-O {[%emt 0:00:04]} Qa3 {[%emt 0:00:31]} 21. Qg3 {[%emt 0:00:21]} Qd6 {[%emt 0:00:11]} 22. Qf3 {[%emt 0:00:29]} Rfc8 {[%emt 0:00:20]} 23. Rfc1 {[%emt 0:00:20]} b6 {[%emt 0:00:42]} 24. Nf1 {[%emt 0:00:37]} h6 {[%emt 0:00:19]} 25. Ng3 {[%emt 0:00:05]} Rxc1+ {[%emt 0:00:12]} 26. Rxc1 {[%emt 0:00:02]} Qd7 {[%emt 0:00:38]} 27. Rd1 {[%emt 0:01:00]} Bc5 {[%emt 0:00:24]} 28. Bf4 {[%emt 0:00:13]} Bd6 {[%emt 0:00:14]} 29. Be3 {[%emt 0:00:04]} Re8 {[%emt 0:00:29]} 30. Bd4 {[%emt 0:00:42]} e5 {[%emt 0:00:15]} 31. Bb2 {[%emt 0:00:16]} d4 {[%emt 0:00:25]} 32. Nf5 {[%emt 0:00:25]} Qe6 {[%emt 0:00:49]} 33. Bc1 {[%emt 0:01:20]} Be7 {[%emt 0:02:44]} 34. Re1 {[%emt 0:02:39]} e4 {[%emt 0:03:09]} 35. Qf4 {[%emt 0:01:19]} Bc5 {[%emt 0:00:53]} 36. Nxg7 {[%emt 0:01:14]} Kxg7 {[%emt 0:00:47]} 37. Qxh6+ {[%emt 0:00:09]} Kg8 {[%emt 0:00:01]} 38. f3 {[%emt 0:02:20]} e3 {[%emt 0:00:31]} 39. Bb2 {[%emt 0:00:44]} Nh7 {[%emt 0:00:17]} 40. Qh5 {[%emt 0:00:26]} Qe5 {[%emt 0:00:36]} 41. Qg4+ {[%emt 0:00:24]} Qg5 {[%emt 0:00:08]} 42. Qd7 {[%emt 0:00:15]} Re7 {[%emt 0:00:26]} 43. Qd8+ {[%emt 0:00:31]} Kg7 {[%emt 0:00:07]} 44. Bxd4+ {[%emt 0:00:05]} Bxd4 {[%emt 0:00:18]} 45. Qxd4+ {[%emt 0:00:02]} Qe5 {[%emt 0:00:06]} 46. Qg4+ {[%emt 0:00:07]} Kh8 {[%emt 0:00:17]} 47. Qc8+ {[%emt 0:00:15]} Re8 {[%emt 0:00:11]} 48. Qg4 {[%emt 0:00:19]} e2 {[%emt 0:00:14]} 49. a4 {[%emt 0:00:25]} Qe3+ {[%emt 0:00:40]} 50. Kh2 {[%emt 0:00:03]} Qf2 {[%emt 0:00:08]} 51. Qd7 {[%emt 0:00:09]} Rg8 {[%emt 0:00:14]} 52. Rxe2 {[%emt 0:00:19]} Qxe2 {[%emt 0:00:08]} 53. Qxf7 {[%emt 0:00:03] Check Result:?ev?} Qxg2# {[%emt 0:00:13]} 0-1

[Event "Asian Amateur Rapid 2024"]
[Site "Al Ain"]
[Date "2024.12.15"]
[Round "6.1"]
[White "Ahmad, Al Romaithi"]
[Black "Abdulrahim, Salem"]
[Result "1-0"]
[ECO "B33"]
[WhiteElo "1976"]
[BlackElo "1843"]
[Annotator "NA COMBH"]
[PlyCount "113"]
[EventDate "2024.12.15"]
[EventType "swiss"]
[EventCountry "UAE"]
[SourceTitle "playchess.com"]
[Source "ChessBase"]
[SourceQuality "1"]
[TimeControl "900+10"]

1. e4 {[%emt 0:00:01]} c5 {[%emt 0:00:02]} 2. Nf3 {[%emt 0:00:03]} Nc6 {[%emt 0:00:02]} 3. d4 {[%emt 0:00:03]} cxd4 {[%emt 0:00:02]} 4. Nxd4 {[%emt 0:00:03]} Nf6 {[%emt 0:00:02]} 5. Nc3 {[%emt 0:00:13]} e5 {[%emt 0:00:03]} 6. Ndb5 {[%emt 0:00:07]} d6 {[%emt 0:00:03]} 7. Bg5 {[%emt 0:00:46]} a6 {[%emt 0:00:03]} 8. Na3 {[%emt 0:00:03]} b5 {[%emt 0:00:02]} 9. Bxf6 {[%emt 0:00:07]} gxf6 {[%emt 0:00:02]} 10. Nd5 {[%emt 0:00:03]} Bg7 {[%emt 0:00:05]} 11. Bd3 {[%emt 0:00:04]} Ne7 {[%emt 0:00:16]} 12. Nxe7 {[%emt 0:00:01]} Qxe7 {[%emt 0:00:02]} 13. O-O {[%emt 0:00:03]} O-O {[%emt 0:00:19]} 14. c4 {[%emt 0:00:01]} f5 {[%emt 0:00:19]} 15. Qh5 {[%emt 0:00:02]} bxc4 {[%emt 0:03:51]} 16. Nxc4 {[%emt 0:00:03]} d5 {[%emt 0:00:17]} 17. exd5 {[%emt 0:00:01]} e4 {[%emt 0:00:01]} 18. Be2 {[%emt 0:00:01]} Rb8 {[%emt 0:01:27]} 19. Rab1 {[%emt 0:00:44]} Qc5 {[%emt 0:00:52]} 20. Ne3 {[%emt 0:01:35]} Rxb2 {[%emt 0:02:44]} 21. Rbc1 {[%emt 0:02:32]} Qe7 {[%emt 0:00:37]} 22. d6 {[%emt 0:01:54]} Qf6 {[%emt 0:02:26]} 23. Rfd1 {[%emt 0:02:05]} f4 {[%emt 0:00:28]} 24. d7 {[%emt 0:01:32]} Bxd7 {[%emt 0:00:41]} 25. Nc4 {[%emt 0:00:57]} Rb7 {[%emt 0:01:40]} 26. Nd6 {[%emt 0:00:02]} Ra7 {[%emt 0:00:44]} 27. Nxe4 {[%emt 0:00:04]} Qg6 {[%emt 0:00:20]} 28. Qc5 {[%emt 0:00:40]} Rfa8 {[%emt 0:01:06]} 29. Nd6 {[%emt 0:00:18]} Bh3 {[%emt 0:00:46]} 30. Qd5 {[%emt 0:01:10]} Rd8 {[%emt 0:00:02]} 31. Bh5 {[%emt 0:00:55]} Bxg2 {[%emt 0:00:29]} 32. Bxg6 {[%emt 0:00:33]} Bxd5 {[%emt 0:00:02]} 33. Nxf7 {[%emt 0:03:29]} Rxf7 {[%emt 0:00:14]} 34. Bxf7+ {[%emt 0:00:07]} Kxf7 {[%emt 0:00:01]} 35. Rc7+ {[%emt 0:00:07]} Kf6 {[%emt 0:00:20]} 36. Rc5 {[%emt 0:00:10]} Ke6 {[%emt 0:00:08]} 37. Re1+ {[%emt 0:00:10]} Be5 {[%emt 0:00:06]} 38. f3 {[%emt 0:00:15]} Rb8 {[%emt 0:00:16]} 39. Rc7 {[%emt 0:00:23]} Rb7 {[%emt 0:00:17]} 40. Rc8 {[%emt 0:00:08]} Rg7+ {[%emt 0:00:06]} 41. Kf2 {[%emt 0:00:03]} Kf6 {[%emt 0:00:23]} 42. Rf8+ {[%emt 0:00:03]} Bf7 {[%emt 0:00:02]} 43. Rd8 {[%emt 0:00:13]} Rg8 {[%emt 0:00:07]} 44. Rd7 {[%emt 0:00:13]} Rf8 {[%emt 0:00:17]} 45. Rb1 {[%emt 0:00:10]} Rc8 {[%emt 0:00:08]} 46. Rb6+ {[%emt 0:00:05]} Be6 {[%emt 0:00:13]} 47. Rd2 {[%emt 0:00:12]} Rc7 {[%emt 0:00:15]} 48. Rxa6 {[%emt 0:00:08]} Rc4 {[%emt 0:00:05]} 49. Re2 {[%emt 0:00:10]} Kf5 {[%emt 0:00:07]} 50. Ra5 {[%emt 0:00:04]} Kf6 {[%emt 0:00:19]} 51. Raxe5 {[%emt 0:00:03]} Bf5 {[%emt 0:00:02]} 52. Ra5 {[%emt 0:00:09]} h5 {[%emt 0:00:07]} 53. h4 {[%emt 0:00:02]} Rc3 {[%emt 0:00:06]} 54. Rb2 {[%emt 0:00:02]} Rc1 {[%emt 0:00:16]} 55. Rb6+ {[%emt 0:00:11]} Be6 {[%emt 0:00:04]} 56. Raa6 {[%emt 0:00:03]} Rc2+ {[%emt 0:00:02] Check Result:10.62} 57. Ke1 {[%emt 0:00:03]} 1-0

[Event "Asian Amateur Rapid 2024"]
[Site "Al Ain"]
[Date "2024.12.15"]
[Round "6.2"]
[White "Mohamed Saeed Laily"]
[Black "Lovakov, Egor Vlad"]
[Result "0-1"]
[ECO "E20"]
[WhiteElo "1984"]
[BlackElo "1763"]
[Annotator "NA COMBH"]
[PlyCount "62"]
[EventDate "2024.12.15"]
[EventType "swiss"]
[EventCountry "UAE"]
[SourceTitle "playchess.com"]
[Source "ChessBase"]
[SourceQuality "1"]
[TimeControl "900+10"]

1. d4 {[%emt 0:00:01]} Nf6 {[%emt 0:00:02]} 2. c4 {[%emt 0:00:01]} e6 {[%emt 0:00:01]} 3. Nc3 {[%emt 0:00:01]} Bb4 {[%emt 0:00:01]} 4. g3 {[%emt 0:00:01]} O-O {[%emt 0:00:03]} 5. Bg2 {[%emt 0:00:01]} d5 {[%emt 0:00:01]} 6. Nf3 {[%emt 0:00:02]} dxc4 {[%emt 0:01:35]} 7. O-O {[%emt 0:00:02]} Nc6 {[%emt 0:01:57]} 8. Qa4 {[%emt 0:00:47]} Rb8 {[%emt 0:01:12]} 9. Rd1 {[%emt 0:02:25]} Bxc3 {[%emt 0:00:36]} 10. bxc3 {[%emt 0:00:02]} b5 {[%emt 0:00:02]} 11. Qc2 {[%emt 0:00:08]} Bb7 {[%emt 0:00:41]} 12. a4 {[%emt 0:00:30]} a6 {[%emt 0:00:18]} 13. Ba3 {[%emt 0:02:38]} Re8 {[%emt 0:00:08]} 14. Rdb1 {[%emt 0:02:32]} Na5 {[%emt 0:00:39]} 15. Nd2 {[%emt 0:00:46]} Bxg2 {[%emt 0:00:12]} 16. Kxg2 {[%emt 0:00:01]} e5 {[%emt 0:00:51]} 17. axb5 {[%emt 0:01:15]} axb5 {[%emt 0:00:15]} 18. Bc5 {[%emt 0:00:57]} Nc6 {[%emt 0:01:44]} 19. Ra6 {[%emt 0:00:15]} exd4 {[%emt 0:00:27]} 20. Nf3 {[%emt 0:01:44]} d3 {[%emt 0:01:00]} 21. exd3 {[%emt 0:00:28]} cxd3 {[%emt 0:00:02]} 22. Qb3 {[%emt 0:01:15]} Ne5 {[%emt 0:01:10]} 23. Nxe5 {[%emt 0:01:11]} Rxe5 {[%emt 0:00:02]} 24. Bd4 {[%emt 0:00:04]} Qd5+ {[%emt 0:00:20]} 25. Qxd5 {[%emt 0:00:18]} Rxd5 {[%emt 0:00:01]} 26. Rc6 {[%emt 0:00:26]} Rd7 {[%emt 0:01:15]} 27. Kf3 {[%emt 0:00:47]} Nd5 {[%emt 0:02:17]} 28. Ke4 {[%emt 0:00:01]} d2 {[%emt 0:00:47]} 29. Kd3 {[%emt 0:00:45]} b4 {[%emt 0:00:31]} 30. Kc2 {[%emt 0:00:34]} h6 {[%emt 0:00:57]} 31. c4 {[%emt 0:00:11] Check Result:-7.52} Ne7 {[%emt 0:00:07]} 0-1

[Event "Asian Amateur Rapid 2024"]
[Site "Al Ain"]
[Date "2024.12.15"]
[Round "6.3"]
[White "Soud, Jaber"]
[Black "Bigabylov, Zhuban"]
[Result "1-0"]
[ECO "E63"]
[WhiteElo "1956"]
[BlackElo "1907"]
[Annotator "NA COMBH"]
[PlyCount "71"]
[EventDate "2024.12.15"]
[EventType "swiss"]
[EventCountry "UAE"]
[SourceTitle "playchess.com"]
[Source "ChessBase"]
[SourceQuality "1"]
[TimeControl "900+10"]

1. d4 {[%emt 0:00:01]} Nf6 {[%emt 0:00:03]} 2. c4 {[%emt 0:00:01]} g6 {[%emt 0:00:02]} 3. Nc3 {[%emt 0:00:01]} Bg7 {[%emt 0:00:02]} 4. Nf3 {[%emt 0:00:02]} O-O {[%emt 0:00:03]} 5. g3 {[%emt 0:00:01]} d6 {[%emt 0:00:26]} 6. Bg2 {[%emt 0:00:01]} Nc6 {[%emt 0:00:02]} 7. O-O {[%emt 0:00:03]} a6 {[%emt 0:00:01]} 8. e4 {[%emt 0:00:24]} Bg4 {[%emt 0:00:11]} 9. Be3 {[%emt 0:00:30]} Nd7 {[%emt 0:01:01]} 10. Qd2 {[%emt 0:01:02]} e5 {[%emt 0:01:25]} 11. d5 {[%emt 0:01:48]} Bxf3 {[%emt 0:00:03]} 12. dxc6 {[%emt 0:00:25]} Bxg2 {[%emt 0:00:08]} 13. cxb7 {[%emt 0:00:02]} Rb8 {[%emt 0:03:57]} 14. Kxg2 {[%emt 0:00:03]} Rxb7 {[%emt 0:00:02]} 15. Rfd1 {[%emt 0:00:31]} Qb8 {[%emt 0:02:07]} 16. b3 {[%emt 0:00:14]} f5 {[%emt 0:00:39]} 17. c5 {[%emt 0:03:58]} Nxc5 {[%emt 0:01:46]} 18. Bxc5 {[%emt 0:00:04]} dxc5 {[%emt 0:00:01]} 19. Qd5+ {[%emt 0:00:10]} Kh8 {[%emt 0:00:10]} 20. Qxc5 {[%emt 0:00:04]} c6 {[%emt 0:01:23]} 21. Rd3 {[%emt 0:01:50]} Qc8 {[%emt 0:00:13]} 22. Rad1 {[%emt 0:00:35]} Rbf7 {[%emt 0:00:15]} 23. f3 {[%emt 0:00:21]} Re8 {[%emt 0:02:04]} 24. Qc4 {[%emt 0:01:10]} Ref8 {[%emt 0:00:08]} 25. Na4 {[%emt 0:01:44]} fxe4 {[%emt 0:02:16]} 26. Qxe4 {[%emt 0:00:03]} Qc7 {[%emt 0:00:32]} 27. Nc5 {[%emt 0:00:25]} Qa5 {[%emt 0:00:10]} 28. Ne6 {[%emt 0:00:44]} Re8 {[%emt 0:00:14]} 29. Rd8 {[%emt 0:00:40]} Rfe7 {[%emt 0:00:05]} 30. Qxc6 {[%emt 0:00:22]} Qb5 {[%emt 0:00:26]} 31. Rxe8+ {[%emt 0:00:16]} Rxe8 {[%emt 0:00:00]} 32. Qxe8+ {[%emt 0:00:08]} Qxe8 {[%emt 0:00:02]} 33. Rd8 {[%emt 0:00:02]} Qxd8 {[%emt 0:00:04]} 34. Nxd8 {[%emt 0:00:01]} Kg8 {[%emt 0:00:05]} 35. Kf2 {[%emt 0:00:02]} Kf8 {[%emt 0:00:23] Check Result:6.62} 36. Ne6+ {[%emt 0:00:01]} 1-0

[Event "Asian Amateur Rapid 2024"]
[Site "Al Ain"]
[Date "2024.12.15"]
[Round "6.4"]
[White "Khalifah, Khaled"]
[Black "Vivaan Sachdev"]
[Result "1-0"]
[ECO "D85"]
[WhiteElo "1962"]
[BlackElo "1824"]
[Annotator "NA COMBH"]
[PlyCount "75"]
[EventDate "2024.12.15"]
[EventType "swiss"]
[EventCountry "UAE"]
[SourceTitle "playchess.com"]
[Source "ChessBase"]
[SourceQuality "1"]
[TimeControl "900+10"]

1. d4 {[%emt 0:00:01]} Nf6 {[%emt 0:00:12]} 2. c4 {[%emt 0:00:01]} g6 {[%emt 0:00:03]} 3. Nc3 {[%emt 0:00:00]} d5 {[%emt 0:00:01]} 4. cxd5 {[%emt 0:00:04]} Nxd5 {[%emt 0:00:01]} 5. Bd2 {[%emt 0:00:11]} Bg7 {[%emt 0:00:03]} 6. e3 {[%emt 0:01:06]} Nxc3 {[%emt 0:00:32]} 7. Bxc3 {[%emt 0:00:02]} O-O {[%emt 0:00:06]} 8. Bc4 {[%emt 0:00:06]} c5 {[%emt 0:00:04]} 9. Nf3 {[%emt 0:00:03]} Bg4 {[%emt 0:00:37]} 10. Be2 {[%emt 0:02:43]} Nd7 {[%emt 0:01:42]} 11. O-O {[%emt 0:00:12]} Qc7 {[%emt 0:00:29]} 12. Rc1 {[%emt 0:00:05]} Rad8 {[%emt 0:00:11]} 13. h3 {[%emt 0:00:06]} Bf5 {[%emt 0:00:27]} 14. Qb3 {[%emt 0:00:27]} Qb8 {[%emt 0:02:53]} 15. Qa3 {[%emt 0:00:32]} b6 {[%emt 0:02:34]} 16. b4 {[%emt 0:00:02]} cxd4 {[%emt 0:00:07]} 17. Nxd4 {[%emt 0:00:24]} Be4 {[%emt 0:00:05]} 18. Nb5 {[%emt 0:00:45]} Ne5 {[%emt 0:02:45]} 19. f3 {[%emt 0:01:16]} Bd3 {[%emt 0:01:03]} 20. Bxd3 {[%emt 0:01:19]} Rxd3 {[%emt 0:00:06]} 21. Bxe5 {[%emt 0:00:04]} Rxa3 {[%emt 0:00:27]} 22. Bxb8 {[%emt 0:00:02]} Rxb8 {[%emt 0:00:01]} 23. Nxa3 {[%emt 0:00:02]} Bb2 {[%emt 0:00:02]} 24. Nb5 {[%emt 0:00:06]} Bxc1 {[%emt 0:00:02]} 25. Rxc1 {[%emt 0:00:01]} a6 {[%emt 0:00:04]} 26. Nd4 {[%emt 0:00:02]} Rd8 {[%emt 0:00:05]} 27. f4 {[%emt 0:00:01]} f6 {[%emt 0:00:03]} 28. Rc6 {[%emt 0:00:06]} e5 {[%emt 0:00:02]} 29. fxe5 {[%emt 0:00:03]} fxe5 {[%emt 0:00:03]} 30. Nf3 {[%emt 0:00:00]} Rd1+ {[%emt 0:00:04]} 31. Kh2 {[%emt 0:00:03]} e4 {[%emt 0:00:01]} 32. Ng5 {[%emt 0:00:08]} Rd2 {[%emt 0:00:01]} 33. Rxb6 {[%emt 0:00:04]} Rxa2 {[%emt 0:00:01]} 34. Nxe4 {[%emt 0:00:01]} Ra3 {[%emt 0:00:02]} 35. Nf6+ {[%emt 0:00:01]} Kg7 {[%emt 0:00:02]} 36. Nd5 {[%emt 0:11:01]} Kf7 {[%emt 0:00:08]} 37. e4 {[%emt 0:00:00]} Rd3 {[%emt 0:00:02] Check Result:50.14} 38. Rxa6 {[%emt 0:00:00]} 1-0

[Event "Asian Amateur Rapid 2024"]
[Site "Al Ain"]
[Date "2024.12.15"]
[Round "6.5"]
[White "Saqar Essa Khamis"]
[Black "Chekanov, Timur"]
[Result "1-0"]
[ECO "B18"]
[WhiteElo "1684"]
[BlackElo "1865"]
[Annotator "NA COMBH"]
[PlyCount "131"]
[EventDate "2024.12.15"]
[EventType "swiss"]
[EventCountry "UAE"]
[SourceTitle "playchess.com"]
[Source "ChessBase"]
[SourceQuality "1"]
[TimeControl "900+10"]

1. e4 {[%emt 0:00:02]} c6 {[%emt 0:00:01]} 2. d4 {[%emt 0:00:02]} d5 {[%emt 0:00:00]} 3. Nc3 {[%emt 0:00:02]} dxe4 {[%emt 0:00:01]} 4. Nxe4 {[%emt 0:00:01]} Bf5 {[%emt 0:00:01]} 5. Ng3 {[%emt 0:00:01]} Bg6 {[%emt 0:00:01]} 6. h4 {[%emt 0:00:02]} h6 {[%emt 0:00:00]} 7. N1e2 {[%emt 0:00:01]} e6 {[%emt 0:01:09]} 8. Nf4 {[%emt 0:00:10]} Bh7 {[%emt 0:00:01]} 9. c3 {[%emt 0:00:02]} Bd6 {[%emt 0:00:03]} 10. Bd3 {[%emt 0:00:08]} Bxd3 {[%emt 0:00:19]} 11. Qxd3 {[%emt 0:00:03]} Bxf4 {[%emt 0:00:22]} 12. Bxf4 {[%emt 0:00:02]} Nf6 {[%emt 0:00:02]} 13. O-O-O {[%emt 0:01:59]} Qa5 {[%emt 0:00:28]} 14. Kb1 {[%emt 0:00:07]} Nbd7 {[%emt 0:00:08]} 15. Bd6 {[%emt 0:00:06]} O-O-O {[%emt 0:04:36]} 16. Ne4 {[%emt 0:02:09]} Nxe4 {[%emt 0:01:10]} 17. Qxe4 {[%emt 0:00:02]} Qd5 {[%emt 0:00:03]} 18. Qf4 {[%emt 0:01:16]} Nb6 {[%emt 0:02:50]} 19. Bb8 {[%emt 0:01:05]} Qd7 {[%emt 0:04:27]} 20. Bxa7 {[%emt 0:00:11]} Qc7 {[%emt 0:00:01]} 21. Qxc7+ {[%emt 0:00:33]} Kxc7 {[%emt 0:00:00]} 22. Bxb6+ {[%emt 0:00:01]} Kxb6 {[%emt 0:03:07]} 23. Rh3 {[%emt 0:00:08]} Rhe8 {[%emt 0:00:00]} 24. Rf3 {[%emt 0:00:11]} Re7 {[%emt 0:00:00]} 25. c4 {[%emt 0:00:21]} Red7 {[%emt 0:00:00]} 26. Rfd3 {[%emt 0:00:12]} e5 {[%emt 0:00:00]} 27. d5 {[%emt 0:00:14]} cxd5 {[%emt 0:00:00]} 28. cxd5 {[%emt 0:00:01]} Kc5 {[%emt 0:00:00]} 29. Rf3 {[%emt 0:00:33]} f6 {[%emt 0:00:00]} 30. Rg3 {[%emt 0:00:10]} g5 {[%emt 0:00:00]} 31. hxg5 {[%emt 0:00:32]} hxg5 {[%emt 0:00:01]} 32. Rf3 {[%emt 0:00:08]} Rd6 {[%emt 0:01:06]} 33. Kc2 {[%emt 0:00:16]} b5 {[%emt 0:00:01]} 34. Kc3 {[%emt 0:00:48]} Rf8 {[%emt 0:00:38]} 35. b4+ {[%emt 0:00:53]} Kb6 {[%emt 0:00:01]} 36. Rh3 {[%emt 0:00:31]} Rc8+ {[%emt 0:00:04]} 37. Kb3 {[%emt 0:00:12]} f5 {[%emt 0:00:19]} 38. Rh5 {[%emt 0:00:12]} Rg8 {[%emt 0:00:10]} 39. a4 {[%emt 0:01:21]} bxa4+ {[%emt 0:00:01]} 40. Kxa4 {[%emt 0:00:01]} Ra8+ {[%emt 0:00:25]} 41. Kb3 {[%emt 0:00:01]} Kb5 {[%emt 0:00:11]} 42. Rxg5 {[%emt 0:00:15]} Ra4 {[%emt 0:00:01]} 43. Rxf5 {[%emt 0:00:49]} Rxb4+ {[%emt 0:00:01]} 44. Kc3 {[%emt 0:00:28]} Rc4+ {[%emt 0:00:04]} 45. Kd3 {[%emt 0:03:10]} Rxd5+ {[%emt 0:00:08]} 46. Ke2 {[%emt 0:00:00]} Rc2+ {[%emt 0:00:10]} 47. Ke1 {[%emt 0:00:04]} Rdc5 {[%emt 0:00:25]} 48. Rd2 {[%emt 0:00:48]} Rc1+ {[%emt 0:00:05]} 49. Ke2 {[%emt 0:00:01]} Kc6 {[%emt 0:00:27]} 50. Kf3 {[%emt 0:00:06]} R1c3+ {[%emt 0:00:05]} 51. Kg4 {[%emt 0:00:07]} R3c4+ {[%emt 0:00:13]} 52. Kg5 {[%emt 0:00:06]} Re4 {[%emt 0:00:01]} 53. f3 {[%emt 0:00:30]} Re1 {[%emt 0:00:19]} 54. g4 {[%emt 0:00:11]} Rc3 {[%emt 0:00:10]} 55. Kf6 {[%emt 0:00:20]} Rc5 {[%emt 0:00:13]} 56. g5 {[%emt 0:00:09]} Ra5 {[%emt 0:00:10]} 57. g6 {[%emt 0:00:11]} Rg1 {[%emt 0:00:03]} 58. Re2 {[%emt 0:00:14]} Kd6 {[%emt 0:00:02]} 59. Rexe5 {[%emt 0:00:24]} Rxe5 {[%emt 0:00:23]} 60. Rxe5 {[%emt 0:00:01]} Rxg6+ {[%emt 0:00:05]} 61. Kxg6 {[%emt 0:00:01]} Kxe5 {[%emt 0:00:01]} 62. Kg5 {[%emt 0:00:01]} Ke6 {[%emt 0:00:01]} 63. f4 {[%emt 0:00:01]} Ke7 {[%emt 0:00:01]} 64. Kg6 {[%emt 0:00:02]} Ke8 {[%emt 0:00:01]} 65. Kg7 {[%emt 0:00:03]} Ke7 {[%emt 0:00:01] Check Result:#11} 66. f5 {[%emt 0:00:01]} 1-0

[Event "Asian Amateur Rapid 2024"]
[Site "Al Ain"]
[Date "2024.12.15"]
[Round "6.6"]
[White "Raj Aryan"]
[Black "AbuAzizah, Raji"]
[Result "0-1"]
[ECO "A45"]
[WhiteElo "1609"]
[BlackElo "2161"]
[Annotator "RC"]
[PlyCount "96"]
[EventDate "2024.12.15"]
[EventType "swiss"]
[EventCountry "UAE"]
[SourceTitle "playchess.com"]
[Source "ChessBase"]
[SourceQuality "1"]
[TimeControl "900+10"]

1. d4 {[%emt 0:00:03]} Nf6 {[%emt 0:00:01]} 2. Bg5 {[%emt 0:00:02]} Ne4 {[%emt 0:00:02]} 3. Bh4 {[%emt 0:00:01]} g5 {[%emt 0:00:10]} 4. Bg3 {[%emt 0:00:01]} h5 {[%emt 0:00:02]} 5. f3 {[%emt 0:00:08]} Nxg3 {[%emt 0:00:04]} 6. hxg3 {[%emt 0:00:02]} c5 {[%emt 0:00:04]} 7. c3 {[%emt 0:00:12]} Bg7 {[%emt 0:00:11]} 8. e3 {[%emt 0:00:44]} d5 {[%emt 0:00:24]} 9. Bd3 {[%emt 0:00:06]} c4 {[%emt 0:00:24]} 10. Bc2 {[%emt 0:00:10]} Qb6 {[%emt 0:00:01]} 11. b3 {[%emt 0:01:38]} Nc6 {[%emt 0:00:02]} 12. Nd2 {[%emt 0:00:18]} Qc7 {[%emt 0:00:19]} 13. Ne2 {[%emt 0:00:15]} b5 {[%emt 0:00:15]} 14. a4 {[%emt 0:00:13]} b4 {[%emt 0:00:06]} 15. bxc4 {[%emt 0:01:35]} bxc3 {[%emt 0:00:03]} 16. Nb1 {[%emt 0:01:49]} Ba6 {[%emt 0:01:28]} 17. Kf2 {[%emt 0:02:03]} Bxc4 {[%emt 0:00:18]} 18. Nbxc3 {[%emt 0:00:21]} Nb4 {[%emt 0:00:42]} 19. Bb1 {[%emt 0:01:59]} e5 {[%emt 0:00:44]} 20. Qd2 {[%emt 0:00:31]} a5 {[%emt 0:00:23]} 21. e4 {[%emt 0:01:51]} exd4 {[%emt 0:00:22]} 22. Qxg5 {[%emt 0:01:11]} Kf8 {[%emt 0:01:17]} 23. Nxd5 {[%emt 0:01:04]} Nxd5 {[%emt 0:00:12]} 24. exd5 {[%emt 0:00:06]} d3 {[%emt 0:00:02]} 25. Bxd3 {[%emt 0:01:25]} Bxd3 {[%emt 0:00:02]} 26. Rac1 {[%emt 0:00:11]} Qb6+ {[%emt 0:00:06]} 27. Qe3 {[%emt 0:00:34]} Qxe3+ {[%emt 0:00:29]} 28. Kxe3 {[%emt 0:00:03]} Bxe2 {[%emt 0:00:04]} 29. Kxe2 {[%emt 0:00:01]} Be5 {[%emt 0:00:43]} 30. f4 {[%emt 0:00:26]} Bd6 {[%emt 0:00:01]} 31. Rc6 {[%emt 0:00:03]} Bb4 {[%emt 0:00:01]} 32. Kf3 {[%emt 0:00:16]} Kg7 {[%emt 0:00:01]} 33. Rd1 {[%emt 0:00:03]} Rad8 {[%emt 0:00:09]} 34. d6 {[%emt 0:00:19]} Rd7 {[%emt 0:00:01]} 35. Rd5 {[%emt 0:00:06]} Rh6 {[%emt 0:00:29]} 36. Rg5+ {[%emt 0:00:34]} Rg6 {[%emt 0:00:02]} 37. Rxh5 {[%emt 0:00:04]} Rdxd6 {[%emt 0:00:01]} 38. Rxd6 {[%emt 0:00:34]} Rxd6 {[%emt 0:00:05]} 39. g4 {[%emt 0:00:09]} Rd2 {[%emt 0:00:10]} 40. Rg5+ {[%emt 0:00:09]} Kf8 {[%emt 0:00:02]} 41. Rf5 {[%emt 0:00:01]} Ra2 {[%emt 0:00:04]} 42. g5 {[%emt 0:00:02]} Kg7 {[%emt 0:00:05]} 43. Rd5 {[%emt 0:00:18]} Rxa4 {[%emt 0:00:10]} 44. f5 {[%emt 0:00:02]} Ra2 {[%emt 0:00:20]} 45. g3 {[%emt 0:00:07]} Rd2 {[%emt 0:00:04]} 46. Rb5 {[%emt 0:00:06]} Rd7 {[%emt 0:01:03]} 47. Kg4 {[%emt 0:00:18]} Be1 {[%emt 0:00:17]} 48. Re5 {[%emt 0:00:30]} Rd4+ {[%emt 0:00:27]} 0-1